Cogmind - Beta 14 @@@ ROGUE MODE // 2024.10.07 @ 12:46:28 Player: Deo Result: Destroyed by G-47 Trooper with Particle Gun Performance ------------- Evolutions (0) 0 Regions Visited (1) 200 Robots Destroyed (6) 30 Value Destroyed (116) 116 Prototype IDs (0) 0 Alien Tech Used (0) 0 Bonus (0) 0 TOTAL SCORE: 346 Bonus ------- None Cogmind --------- Core Integrity 0/250 Matter 300/300 Energy 250/250 System Corruption 0% Temperature Cool (9) Movement Walking (120) Location -10/Materials Parts ------- > --- POWER (1) -------- Ion Engine > --- PROPULSION (2) --- Aluminum Leg > --- UTILITY (2) ------ Improved Terrain Scanner > --- WEAPON (2) ------- (None) > --- INVENTORY (5) ---- Aluminum Leg Large Matter Pod (7) Peak State ------------ > --- POWER ------------ Ion Engine > --- PROPULSION ------- Aluminum Leg Aluminum Leg > --- UTILITY ---------- Terrain Scanner Improved Terrain Scanner > --- WEAPON ----------- Light Assault Rifle Datajack > --- INVENTORY -------- Mining Laser [Rating: 9] Favorites ----------- Power Ion Engine Engine Ion Engine Propulsion Aluminum Leg Leg Aluminum Leg Utility Improved Terrain Scanner Device Improved Terrain Scanner Weapon Light Assault Rifle Ballistic Gun Light Assault Rifle Special Weapon Mining Laser Special Melee Weapon Datajack Build | -11 -10 ------- Run | Yrd Mat Slots Evolved . | . . Power . | . . Propulsion . | . . Utility . | . . Weapon . | . . Parts Attached 14 | 7 7 Power 3 | 2 1 Engine 3 | 2 1 Core . | . . Reactor . | . . Propulsion 3 | 3 . Treads . | . . Leg 3 | 3 . Wheel . | . . Hover . | . . Flight . | . . Utility 4 | 1 3 Device 4 | 1 3 Storage . | . . Processor . | . . Hackware . | . . Protection . | . . Artifact . | . . Weapon 4 | 1 3 Energy Gun . | . . Energy Cannon . | . . Ballistic Gun 2 | 1 1 Ballistic Cannon . | . . Launcher . | . . Special Weapon 1 | . 1 Impact Weapon . | . . Slashing Weapon . | . . Piercing Weapon . | . . Special Melee Weapon 1 | . 1 Unidentified Prototypes . | . . Parts Lost 5 | . 5 Power . | . . Propulsion 1 | . 1 Utility 1 | . 1 Weapon 3 | . 3 Highest Loss Streak 4 | . 4 To Critical Strikes . | . . Average Slot Usage (%) 75 | . 75 Engine 14 | . 14 Leg 26 | . 26 Device 17 | . 17 Ballistic Gun 12 | . 12 Special Melee Weapon 3 | . 3 Peak Build Rating 9 | 7 9 Average Rating 5 | 3 7 On Entrance 3 | . 7 Naked Turns . | . . Heaviest Build 9 | 7 9 Greatest Support 20 | 20 20 Greatest Overweight (x) . | . . Average Overweight (x) . | . . Largest Inventory Capacity 5 | 5 5 Average Capacity 5 | 5 5 Most Carried 5 | 5 4 Average Carried 1 | 2 1 Final Capacity 5 | 5 5 Final Carried 2 | 1 2 Class Distribution -------------------- 88% | Mutant 11% | Scavenger-Mutant Dominant Class ---------------- Mutant | -10/Materials Resources | -11 -10 ----------- Run | Yrd Mat Matter Collected 392 | 295 97 Remotely . | . . Salvage Created 258 | 80 178 Parts 13 | 8 5 Haulers Intercepted . | . . Recyclers Shooed 1 | . 1 Parts Field Recycled . | . . Retrieved Matter . | . . Parts Self-Destructed . | . . Prevented . | . . Kills | -11 -10 ------- Run | Yrd Mat Combat Hostiles Destroyed 3 | 1 2 Guns 3 | 1 2 Classes Destroyed 4 | 3 1 Worker 1 | 1 . Tunneler 1 | 1 . Recycler 1 | . 1 Grunt 3 | 1 2 Best Kill Streak 3 | 1 3 Combat Bots Only 2 | 1 2 Max Kills in Single Turn 1 | 1 1 Gunslinging . | . . Exploded . | . . Melee . | . . Uniques/NPCs Destroyed . | . . Combat | -11 -10 -------- Run | Yrd Mat Hostile Shots Fired 67 | 5 62 Missed 13 | 1 12 Damage Taken 662 | 45 617 Core 254 | 12 242 Absorbed by Shields . | . . Core Remaining (%) 95 | 95 . Volleys Fired 43 | 25 18 Largest 1 | 1 1 Hottest 100 | 20 100 Shots Fired 43 | 25 18 Gun 40 | 25 15 Cannon . | . . Launcher . | . . Special 3 | . 3 Kinetic 40 | 25 15 Thermal 3 | . 3 Explosive . | . . Electromagnetic . | . . Robot Hit Streak 7 | 5 7 Robot Miss Streak 2 | 2 2 Penetration Max . | . . Secondary Targets . | . . Shots Hit Robots 32 | 18 14 Core Hits 11 | 7 4 Critical Kills . | . . Critical Parts Destroyed . | . . Critical Strikes . | . . Melee Attacks 1 | . 1 Impact . | . . Slashing . | . . Piercing . | . . Sneak Attacks . | . . Combat Hostiles . | . . Follow-up Attacks . | . . Damage Inflicted 334 | 143 191 Guns 286 | 143 143 Cannons . | . . Explosions . | . . Melee . | . . Ramming . | . . Kinetic 286 | 143 143 Thermal 48 | . 48 Explosive . | . . Electromagnetic . | . . Impact . | . . Slashing . | . . Piercing . | . . Highest Corruption . | . . Average Corruption . | . . Corruption Purged . | . . Corruption Blocked . | . . Overload Shots . | . . Overflow Damage . | . . Projectiles . | . . Explosions . | . . Melee . | . . Knockbacks . | . . Impact . | . . Kinetic . | . . Secondary . | . . Self-Inflicted Damage . | . . Shots . | . . Rammed . | . . Targets Rammed . | . . Kicked . | . . Crushed . | . . Highest Temperature 55 | 6 55 Average Temperature 13 | 6 14 Received Heat Transfer 372 | 24 348 Siege Activations . | . . Robots Corrupted . | . . Combat Hostiles . | . . Parts Fried . | . . Impact Corruptions . | . . Robots Melted . | . . Combat Hostiles . | . . Parts Melted . | . . Heat Transferred 100 | . 100 Parts Sabotaged . | . . Parts Stolen . | . . Parts Stripped . | . . Power Chain Reactions . | . . Alert | -11 -10 ------- Run | Yrd Mat Peak Influence 79 | 30 79 Initial 19 | . 19 Average 23 | 11 37 Maximum Alert Level . | . . Low Security (%) 100 | 100 100 Level 1 . | . . Level 2 . | . . Level 3 . | . . Level 4 . | . . Level 5 . | . . High Security . | . . Max Security . | . . Squads Dispatched 1 | . 1 Investigation 1 | . 1 Extermination . | . . Reinforcement . | . . Assault . | . . Garrison . | . . Intercept . | . . Searches Triggered . | . . Construction Impeded . | . . Haulers Reinforced . | . . Active Scanning Responses . | . . Cargo Convoy Interrupts . | . . Stealth | -11 -10 --------- Run | Yrd Mat Distress Signals 1 | . 1 Communications Jammed . | . . Distress Signals . | . . Times Spotted 6 | 1 5 Peak Tracking Total 4 | 1 4 Tactical Retreats 1 | . 1 Traps | -11 -10 ------- Run | Yrd Mat Traps Triggered . | . . Indirectly . | . . Trap Hack Attempts . | . . Triggered . | . . Disarmed . | . . Reprogrammed . | . . Reused . | . . Traps Extracted . | . . Installed . | . . Triggered . | . . Machines | -11 -10 ---------- Run | Yrd Mat Machines Disabled . | . . Max in Single Turn . | . . Machines Repaired . | . . Machines Dismantled . | . . Machines Sabotaged . | . . Overloaded Fab Kills . | . . Hacking | -11 -10 --------- Run | Yrd Mat Machines Accessed 2 | . 2 Terminals 1 | . 1 Fabricators . | . . Repair Stations 1 | . 1 Recycling Units . | . . Scanalyzers . | . . Garrison Access . | . . Total Hacks 4 | . 4 Successful 2 | . 2 Failed 2 | . 2 Catastrophic 1 | . 1 Database Lockouts . | . . Manual . | . . Terminals 3 | . 3 Fabricators . | . . Repair Stations 1 | . 1 Recycling Units . | . . Scanalyzers . | . . Garrison Access . | . . Terminal Hacks 2 | . 2 Record 1 | . 1 Locate Traps 1 | . 1 Fabricator Hacks . | . . Repair Station Hacks . | . . Recycling Unit Hacks . | . . Scanalyzer . | . . Garrison Access Hacks . | . . Unauthorized Hacks . | . . Terminals . | . . Fabricators . | . . Repair Stations . | . . Recycling Units . | . . Scanalyzers . | . . Garrison Access . | . . Data Cores Recovered . | . . Used . | . . Hacking Detections 1 | . 1 Full Trace Events 1 | . 1 Feedback Events . | . . Feedback Blocked . | . . Robot Schematics Acquired . | . . Robots Built . | . . Authchips . | . . Time . | . . Total Robot Build Rating . | . . Part Schematics Acquired . | . . Parts Built . | . . Authchips . | . . Time . | . . Total Part Build Rating . | . . Parts Repaired . | . . Time . | . . Parts Recycled . | . . Recycled Matter . | . . Retrieved Matter . | . . Retrieved Components . | . . Parts Scanalyzed . | . . Part Schematics Acquired . | . . Parts Damaged . | . . Bothacking | -11 -10 ------------ Run | Yrd Mat Used RIF Installer . | . . Robots Hacked . | . . Non-combat . | . . Combat . | . . Robot Hacks Applied . | . . Relay Couplers Released . | . . Fabnet Peak Effective % . | . . Robots Rewired . | . . Allies Hacked . | . . Hacks Repelled . | . . Allies | -11 -10 -------- Run | Yrd Mat Total Allies . | . . Largest Group . | . . Highest-Rated Group . | . . Highest-Rated Ally . | . . Total Orders . | . . Ally Attacks . | . . Total Damage . | . . Kills . | . . Allies Corrupted . | . . Allies Melted . | . . Intel | -11 -10 ------- Run | Yrd Mat Robot Analysis Total . | . . Derelict Logs Recovered . | . . Drone Launches . | . . Drone Recoveries . | . . Exploration | -11 -10 ------------- Run | Yrd Mat Turns Passed 577 | 307 270 Spaces Moved 370 | 214 156 Core 28 | 28 . Treads . | . . Legs 342 | 186 156 Wheels . | . . Hover . | . . Flight . | . . Fastest Speed 50 | 50 120 Average Speed 114 | 110 120 Slowest Speed 120 | 120 120 Overloaded Moves . | . . Propulsion Burnouts . | . . Robots Hopped . | . . Cave-ins Triggered . | . . Exploration Rate (%) 10 | 7 14 Regions Visited 1 Branch Regions . Pre-discovered Areas . | . . Known Exits Taken . | . . Unknown Exits Taken 1 | 1 . Scrap Searched . | . . Spaces Dug . | . . Terrain Destroyed . | . . Melee . | . . Projectile . | . . AOE . | . . Terrain Rammed . | . . Walls Destroyed . | . . Machines Disabled . | . . Actions | -11 -10 --------- Run | Yrd Mat Total 485 | 269 216 Wait 20 | . 20 Move 369 | 213 156 Hop . | . . Pick Up 24 | 15 9 Fast Attach . | . . Attach 9 | 5 4 Detach . | . . Swap 5 | 2 3 Drop 14 | 9 5 Fire 43 | 25 18 Melee 1 | . 1 Ram . | . . Kick . | . . Crush . | . . Escape Stasis . | . . Rewire . | . . Trap . | . . Miscellaneous . | . . Route ------- -11/Scrapyard -10/Materials (discovered 2 exits: [*Mat] / [Sub]) History --------- Turn | Location | Event 2 | -11/Scrapyard | Met Revision 17 178 | -11/Scrapyard | Discovered new exit (range 8) 308 | -11/Scrapyard | Entered Materials 316 | -10/Materials | Build established: Mutant 399 | -10/Materials | Discovered new exit (range 16) 520 | -10/Materials | Discovered new exit (range 10) 565 | -10/Materials | Core integrity fell below 50% 574 | -10/Materials | Core integrity fell below 20% 578 | -10/Materials | Destroyed by G-47 Trooper with Particle Gun Last Messages --------------- 00485_ Acquired 20 matter. 00487_ K-01 Serf collects debris. 00487_ Acquired Heat Sink. 00489_ K-01 Serf collects debris. 00490_ Acquired 10 matter. 00492_ Acquired Aluminum Leg. 00493_ K-01 Serf collects debris. 00496_ Acquired Sml. Laser. 00496_ K-01 Serf collects debris. 00497_ Dropped Sml. Laser. 00497_ Dropped Heat Sink. 00503_ K-01 Serf collects debris. 00520_ EXIT=FOUND 00524_ K-01 Serf collects debris. 00538_ Acquired Lrg. Matter Pod. 00541_ Assault Rifle destroyed. 00552_ Aluminum Leg destroyed. 00556_ Heat Sink destroyed. 00558_ Mining Laser destroyed. [Achievement: First Step to Greatness] Map ----- +----------------------------------------------------+ | | | | | | | | | | | | | ?????????????????????????????????????????????????? | | ?????????????????????????????????????????????????? | | ?????????????????????????????????????????????????? | | ?????????????????????????????????????????????????? | | ???????????????????????#?????????????????????????? | | ?????????????????????????????????????????????????? | | ?????????????????????????????#???????????????????? | | ???????????????????????#????????#????????????????? | | ?????????????????????????????????????????????????? | | ????????????????? ?????????#???####??????????????? | | ??????????????????????????????# #??????????????? | | ????????????????? ????????????# < #????? ????????? | | ???????????? ???? ?????????#??# #??????????????? | | ??????????????????????#??????## +??????????????? | | ???????????????????#?????#????# #??????????????? | | ????????????????#????????#?#??# #??????????????? | | ???????????????????????######## ##????#??#?????? | | ???????????? ?????????# g # #??????#???????? | | ??????? ??? ??? ??????# g # #??????????????? | | ??????? ????#??? ?#???# @""" # #??????????????? | | ??????? #??#?#????????# """ + +???""?????????? | | ??????# #???? ????????# """ # #? ?????#??????? | | ??????# #?"?"????#????# # #?????????????^? | | ??????# #?"???#+############## ##????????????^? | | ?????## +??"??# # #????????????^? | | ??????# #? ??# = ! *!# #???#??? ?????? | | ??????# #???"?# =%[ %[+ T #???????????^^? | | ??????# #?????# ! %# #????????????^? | | ??????# #?????# # #??#??? ??????? | | #?????# #???? # ### #?#?#???#?????? | | ??????# #??#??#+#############?# #?????????????? | | ???#### ####### ##?#??????????# ##????????????? | | ???# #???#????#???# #?????????????? | | ???# #????#?#?